bitfinex/quotes_ETHUSD_20250923
["timestamp","ask_amount","ask_price","bid_price","bid_amount"]
[1758668510680,0.35817345,4186.8,4186.7,14.5]
[1758668512281,2.74663241,4186.8,4186.7,14.5]
[1758668512480,3.70023568,4186.8,4186.7,14.5]
[1758668514179,0.35817345,4186.8,4186.7,14.5]
[1758668517265,1.0765892,4186.8,4186.7,14.9442]
[1758668518186,1.0765892,4186.8,4186.0,0.1192]
[1758668518487,0.1192,4186.3,4186.0,0.4442]
[1758668518796,3.983,4186.2,4186.0,2.83310217]
[1758668519092,2.067,4186.1,4186.0,2.38890217]
[1758668519458,2.067,4186.1,4186.0,2.83310217]
[1758668520081,0.1192,4186.3,4186.2,2.38880129]
[1758668520389,6.1692,4186.3,4186.2,2.38880129]
[1758668520590,6.1692,4186.3,4186.2,2.83300129]
[1758668521386,6.1692,4186.3,4186.2,0.4442]
[1758668522593,6.1692,4186.3,4185.9,0.4442]
[1758668522757,6.1692,4186.3,4186.0,2.83310133]
[1758668523595,3.982,4186.2,4186.1,2.38884941]
[1758668523758,6.049,4186.2,4186.1,2.38884941]
[1758668523953,13.239,4186.2,4185.9,0.4442]
[1758668524283,2.96107233,4186.1,4185.8,0.004]
[1758668524458,4.33939655,4186.0,4185.8,0.004]
[1758668524651,0.35840826,4185.9,4185.8,0.004]
[1758668525392,0.13441242,4185.9,4185.8,0.004]
[1758668529996,3.18495577,4185.9,4185.8,0.004]
[1758668530160,0.79598327,4185.9,4185.8,0.004]
[1758668530361,13.11998736,4185.9,4185.8,0.004]
[1758668530670,9.50121486,4185.9,4185.8,0.004]
[1758668531374,19.43445577,4185.9,4185.8,0.004]
[1758668531575,20.22645577,4185.9,4185.8,0.004]
[1758668533189,10.54818327,4185.9,4185.8,0.004]
[1758668533386,14.53218327,4185.9,4185.8,0.4375]
[1758668533589,16.60318327,4185.9,4185.8,2.82652957]
[1758668533818,16.60318327,4185.9,4185.8,0.4375]
[1758668536484,16.60318327,4185.9,4185.8,14.9375]
[1758668537319,16.60318327,4185.9,4185.8,14.504]
[1758668538122,16.60218327,4185.9,4185.8,14.504]
[1758668539385,16.60218327,4185.9,4185.8,14.9375]
[1758668539986,7.54804208,4185.9,4185.8,17.32652957]
[1758668540185,13.244,4185.9,4185.8,17.32652957]
[1758668540811,13.244,4185.9,4185.8,14.9375]
[1758668541605,13.244,4185.9,4185.8,14.504]
[1758668543228,13.244,4185.9,4185.8,14.9375]
[1758668543536,13.244,4185.9,4185.8,14.504]
[1758668546263,13.37827792,4185.9,4185.8,14.504]
[1758668547652,13.81197792,4185.9,4185.8,14.504]
[1758668547954,16.08143997,4185.9,4185.8,14.504]
[1758668548121,15.64773997,4185.9,4185.8,14.504]
[1758668548321,13.60214488,4185.9,4185.8,14.504]
[1758668549025,7.32427792,4185.9,4185.8,16.89302957]
[1758668549225,13.37627792,4185.9,4185.8,17.32652957]
[1758668550065,7.32427792,4185.9,4185.8,17.32652957]
[1758668550276,13.37627792,4185.9,4185.8,17.32652957]
[1758668551867,7.32427792,4185.9,4185.8,17.32652957]
[1758668552020,13.241,4185.9,4185.8,19.54259687]
[1758668552242,13.241,4185.9,4185.8,3.07102957]
[1758668552453,13.241,4185.9,4185.8,2.82652957]
[1758668552656,13.241,4185.9,4185.8,17.32652957]
[1758668554550,13.241,4185.9,4185.8,17.57102957]
[1758668554729,13.241,4185.9,4185.8,17.32652957]
[1758668555443,11.174,4185.9,4185.8,17.32652957]
[1758668555640,6.051,4185.9,4185.8,16.89302957]
[1758668560168,6.051,4185.9,4185.8,17.32652957]
[1758668561043,6.051,4185.9,4185.8,16.89302957]
[1758668563073,6.051,4185.9,4185.8,14.504]
[1758668563870,6.051,4185.9,4185.8,16.89302957]
[1758668564348,6.1854237,4185.9,4185.8,16.89302957]
[1758668566474,6.1854237,4185.9,4185.8,17.33202957]
[1758668566875,6.18545425,4185.9,4185.8,17.33202957]
[1758668568251,6.18545425,4185.9,4185.8,16.89302957]
[1758668568452,13.37545425,4185.9,4185.8,16.89302957]
[1758668568942,13.37545425,4185.9,4185.8,14.504]
[1758668569343,13.59966767,4185.9,4185.8,14.504]
[1758668569668,15.45676444,4185.9,4185.8,14.504]
[1758668571469,14.04076767,4185.9,4185.8,14.504]
[1758668575853,13.59966767,4185.9,4185.8,14.504]
[1758668576101,13.59966767,4185.9,4185.8,14.943]
[1758668576697,13.59966767,4185.9,4185.8,16.89302957]
[1758668577988,7.54866767,4185.9,4185.8,16.89302957]
[1758668578191,13.59666767,4185.9,4185.8,16.89302957]
[1758668579085,13.59666767,4185.9,4185.8,17.33202957]
[1758668579496,13.59666767,4185.9,4185.8,2.39302957]
[1758668580004,13.59666767,4185.9,4185.8,16.89302957]
[1758668582826,13.59666767,4185.9,4185.8,14.504]
[1758668583103,14.03776767,4185.9,4185.8,14.504]
[1758668584023,13.59666767,4185.9,4185.8,14.504]
[1758668584225,13.59679659,4185.9,4185.8,14.504]
[1758668584430,15.48135004,4185.9,4185.8,14.504]
[1758668584629,15.72155004,4185.9,4185.8,14.504]
[1758668585323,14.03789659,4185.9,4185.8,14.504]
[1758668585556,14.03789659,4185.9,4185.8,16.89302957]
[1758668585914,14.03789659,4185.9,4185.8,14.504]
[1758668587153,7.98989659,4185.9,4185.8,14.504]
[1758668587371,14.03789659,4185.9,4185.8,14.504]
[1758668588965,14.03789659,4185.9,4185.8,0.004]
[1758668588966,24.69820412,4185.9,4185.8,0.004]
[1758668589677,27.32737662,4185.9,4185.8,0.004]
[1758668590288,28.11937662,4185.9,4185.8,0.004]
[1758668590487,28.76513614,4185.9,4185.8,0.004]
[1758668590784,28.11937662,4185.9,4185.8,0.004]
[1758668591889,28.4941363,4185.9,4185.8,0.004]
[1758668592066,29.35220708,4185.9,4185.8,0.004]
[1758668592265,3.18125789,4185.4,4185.3,0.004]
[1758668592587,17.25084276,4185.4,4185.3,0.004]
[1758668592757,17.93504276,4185.4,4185.3,0.004]
[1758668595170,25.12504276,4185.4,4185.3,0.004]
[1758668596290,30.78111234,4185.4,4185.3,0.004]
[1758668596672,2.38972403,4184.6,4184.1,0.02]
[1758668596897,5.65606958,4184.2,4184.1,0.02]
[1758668597174,14.22913909,4184.2,4184.1,0.02]
[1758668597373,14.22906548,4184.2,4184.1,0.02]
[1758668598073,11.83912237,4184.2,4184.1,0.02]
[1758668599208,16.46685516,4184.2,4184.1,0.02]
[1758668599370,16.33280237,4184.2,4184.1,0.02]
[1758668599572,13.94285926,4184.2,4184.1,0.02]
[1758668600070,13.48465926,4184.2,4184.1,0.02]
[1758668602270,11.70506958,4184.2,4184.1,0.02]
[1758668602686,18.89506958,4184.2,4184.1,0.02]
[1758668606629,13.239,4184.2,4184.1,0.02]
[1758668607120,7.19,4184.2,4184.1,0.02]
[1758668607320,9.258,4184.2,4184.1,3.12600023]
[1758668607522,13.24,4184.2,4184.1,5.15390085]
[1758668607687,13.24,4184.2,4184.1,5.13000085]
[1758668608122,13.24,4184.2,4184.1,3.12600023]
[1758668609127,13.24,4184.2,4184.1,17.62600023]
[1758668609790,13.24,4184.2,4184.1,17.37770023]
[1758668610231,13.24,4184.2,4184.1,16.91000023]
[1758668610787,13.24,4184.2,4184.1,17.37770023]
[1758668614807,13.24,4184.2,4184.1,14.52]
[1758668615552,13.24,4184.2,4184.1,16.91000023]
[1758668615721,13.24,4184.2,4184.1,16.91400023]
[1758668616406,13.24,4184.2,4184.1,14.524]
[1758668617021,13.6982,4184.2,4184.1,14.524]
[1758668617212,13.6982,4184.2,4184.1,0.024]
[1758668617213,17.59204026,4184.2,4184.1,0.024]
[1758668617422,21.04160399,4184.2,4184.1,0.024]
[1758668619075,21.83360399,4184.2,4184.1,0.024]
[1758668621437,21.83387818,4184.2,4184.1,0.024]
[1758668622429,22.34985557,4184.2,4184.1,0.024]
[1758668623776,22.35025654,4184.2,4184.1,0.024]
[1758668625464,17.20811343,4184.2,4184.1,0.024]
[1758668625793,28.13005654,4184.2,4184.1,0.024]
[1758668625980,28.58245654,4184.2,4184.1,0.024]
[1758668626581,26.19251343,4184.2,4184.1,0.024]
[1758668626783,28.58245654,4184.2,4184.1,0.024]
[1758668628295,26.19251343,4184.2,4184.1,0.024]
[1758668628488,28.58245654,4184.2,4184.1,0.024]
[1758668629291,13.22611343,4184.2,4184.1,0.024]
[1758668629455,25.74011343,4184.2,4184.1,0.024]
[1758668630196,18.55011343,4184.2,4184.1,0.024]
[1758668631988,18.55015293,4184.2,4184.1,0.024]
[1758668632191,5.24415293,4184.2,4184.1,0.024]
[1758668632386,6.40835554,4184.2,4184.1,3.10990023]
[1758668632608,6.40835554,4184.2,4184.1,0.7199]
[1758668632792,6.40835554,4184.2,4184.1,3.10990023]
[1758668633222,6.40835554,4184.2,4184.1,0.4775]
[1758668633384,6.40835554,4184.2,4184.1,0.024]
[1758668633826,6.40835554,4184.2,4184.1,14.524]
[1758668634432,6.40835554,4184.2,4184.1,14.9775]
[1758668638519,6.40835554,4184.2,4184.1,17.60990023]
[1758668638728,0.35835554,4184.2,4184.1,17.60990023]
[1758668639226,6.40835554,4184.2,4184.1,17.60990023]
[1758668639720,0.35835554,4184.2,4184.1,17.60990023]
[1758668639903,6.52754323,4184.2,4184.1,17.60990023]
[1758668640148,0.47754323,4184.2,4184.1,17.60990023]
[1758668640454,6.30355134,4184.2,4184.1,17.60990023]
[1758668640863,6.1692,4184.2,4184.1,17.60990023]
[1758668641237,0.001,4185.3,4184.7,2.3896132]
[1758668641238,0.793,4185.3,4184.7,2.3896132]
[1758668641437,0.793,4185.3,4184.8,0.4535]
[1758668641438,3.0,4185.1,4184.8,0.4535]
[1758668641756,3.0,4185.1,4184.4,0.4535]
[1758668641757,0.1192,4184.7,4184.4,0.4535]
[1758668641957,4.34042738,4184.6,4184.5,2.84327177]
[1758668643363,4.34042738,4184.6,4184.2,2.38989386]
[1758668643364,4.34037641,4184.6,4184.2,0.4535]
[1758668643536,0.13435951,4184.5,4184.4,2.38982888]
[1758668643763,0.25355951,4184.5,4184.4,2.38982888]
[1758668644063,0.25355951,4184.5,4184.4,2.84332888]
[1758668644948,0.1192,4184.5,4184.4,3.08572888]
[1758668645148,0.25354063,4184.5,4184.4,3.08572888]
[1758668646953,0.25354063,4184.5,4184.4,2.63222888]
[1758668647160,0.1192,4184.5,4184.4,17.58572888]
[1758668647624,6.1682,4184.5,4184.4,17.58572888]
[1758668648030,6.1682,4184.5,4184.4,19.58569573]
[1758668648031,2.068,4184.5,4184.4,19.58569573]
[1758668648255,6.049,4184.5,4184.4,19.58569573]
[1758668649857,0.1192,4185.2,4184.4,17.19586685]
[1758668650062,6.049,4185.1,4184.5,0.4535]
[1758668650267,6.049,4185.1,4185.0,2.38948626]
[1758668650631,6.049,4185.1,4185.0,16.88948626]
[1758668651138,6.049,4185.1,4185.0,17.58538626]
[1758668651766,6.049,4185.1,4185.0,16.88948626]
[1758668652670,0.1192,4185.2,4185.0,16.88948626]
[1758668652671,0.1192,4185.2,4185.1,2.38942916]
[1758668652873,0.1192,4185.2,4185.1,3.08992345]
[1758668653077,6.1682,4185.2,4185.1,3.08992345]
[1758668653249,4.1002,4185.2,4185.1,2.38942916]
[1758668653577,6.1682,4185.2,4185.1,2.38942916]
[1758668653946,4.1002,4185.2,4185.1,2.38942916]
[1758668654151,6.1682,4185.2,4185.1,2.38942916]
[1758668654547,6.1682,4185.2,4185.0,14.5]
[1758668654780,7.02022,4185.2,4185.0,14.5]
[1758668654978,0.80908367,4185.1,4185.0,14.5]
[1758668655195,7.62655796,4185.1,4184.2,2.38990331]
[1758668655495,0.1192,4184.5,4184.2,2.38992868]
[1758668655701,6.049,4184.4,4184.3,14.5]
[1758668656396,6.489,4184.4,4184.3,14.5]
[1758668656570,6.724,4184.4,4183.6,2.39425579]
[1758668656769,0.675,4184.3,4183.6,2.39425579]
[1758668656955,3.981,4184.2,4183.9,2.39010895]
[1758668657156,3.981,4184.2,4184.1,14.524]
[1758668659196,3.981,4184.2,4184.1,16.91400023]
[1758668663311,6.049,4184.2,4184.1,14.524]
[1758668664114,6.049,4184.2,4184.1,16.91400023]
[1758668665219,7.63,4184.7,4184.1,14.524]
[1758668665383,2.20223748,4184.6,4184.5,2.38977177]
[1758668665583,6.18323748,4184.6,4184.5,2.38977177]
[1758668665787,6.18324438,4184.6,4184.5,2.38977177]
[1758668668922,6.18324438,4184.6,4184.5,16.88977177]
[1758668670993,0.13424438,4184.6,4184.5,18.88539755]
[1758668671338,5.649,4184.6,4184.5,19.68119755]
[1758668672600,0.1202,4185.3,4185.2,2.38937207]
[1758668672798,9.5314443,4185.3,4185.2,2.38937207]
[1758668673125,9.5314443,4185.3,4185.2,3.06597207]
[1758668673331,9.5314443,4185.3,4185.2,2.38937207]
[1758668676335,9.5314443,4185.3,4185.2,16.88937207]
[1758668676837,6.053,4185.3,4185.2,17.56597207]
[1758668677135,0.001,4185.3,4185.2,19.56191732]
[1758668677343,6.053,4185.3,4185.2,19.56191732]
[1758668677666,6.054,4185.3,4185.2,19.68111732]
[1758668679348,3.986,4185.3,4185.2,19.68111732]
[1758668679646,6.054,4185.3,4185.2,19.68111732]
[1758668682478,6.054,4185.3,4185.2,19.00451732]
[1758668685880,6.054,4185.3,4185.2,14.6192]
[1758668686069,6.7337,4185.3,4185.2,14.5]
[1758668687094,6.7337,4185.3,4185.0,0.004]
[1758668687393,5.65913097,4185.1,4185.0,0.004]
[1758668687699,11.26648712,4185.1,4185.0,0.004]
[1758668687997,11.94618712,4185.1,4185.0,0.004]
[1758668691696,4.79682559,4185.1,4185.0,0.004]
[1758668691885,4.4372,4185.1,4185.0,0.004]
[1758668692081,3.983,4185.1,4185.0,0.004]
[1758668692280,4.11720447,4185.1,4185.0,0.004]
[1758668692481,6.5052,4185.1,4185.0,0.004]
[1758668692700,6.051,4185.1,4185.0,0.004]
[1758668693105,6.18521141,4185.1,4185.0,0.004]
[1758668694020,3.982,4185.1,4185.0,2.39348626]
[1758668694216,6.05,4185.1,4185.0,2.39348626]
[1758668694383,6.05,4185.1,4185.0,0.004]
[1758668695015,6.18424741,4185.1,4185.0,0.004]
[1758668695388,6.86394741,4185.1,4185.0,0.004]
[1758668695715,7.80139042,4185.1,4185.0,0.004]
[1758668696221,7.12169042,4185.1,4185.0,0.004]
[1758668696456,6.18424741,4185.1,4185.0,2.39348626]
[1758668698344,0.25344741,4185.1,4185.0,3.06168626]
[1758668698501,6.1682,4185.1,4185.0,3.08558112]
[1758668698834,6.1682,4185.1,4185.0,3.06168626]
[1758668699124,13.3582,4185.1,4185.0,17.56168626]
[1758668700238,13.3582,4185.1,4185.0,14.504]
[1758668700441,13.49255563,4185.1,4185.0,14.504]
[1758668700640,15.73221872,4185.1,4185.0,14.504]
[1758668701742,15.73222844,4185.1,4185.0,14.504]
[1758668702311,15.05252844,4185.1,4185.0,14.504]
[1758668702525,13.71650844,4185.1,4185.0,14.504]
[1758668703562,13.49256535,4185.1,4185.0,14.504]
[1758668704730,6.30256535,4185.1,4185.0,14.504]
[1758668704928,2.20236535,4185.1,4185.0,17.13358626]
[1758668705133,2.20236535,4185.1,4185.0,19.63320313]
[1758668705134,6.05,4185.1,4185.0,19.63320313]
[1758668705642,0.001,4185.3,4185.2,2.38937207]
[1758668705846,6.053,4185.3,4185.2,2.41326579]
[1758668706233,6.053,4185.3,4185.2,3.08146579]
[1758668706548,6.053,4185.3,4185.2,5.28611268]
[1758668706743,6.053,4185.3,4185.2,5.26221896]
[1758668707848,6.053,4185.3,4185.2,4.59401896]
[1758668708044,6.053,4185.3,4185.2,2.38937207]
[1758668708411,6.053,4185.3,4185.1,2.38941704]
[1758668708751,12.39183097,4185.3,4185.2,2.38937207]
[1758668709044,12.39183097,4185.3,4185.1,2.38941455]
[1758668709220,6.7327,4185.3,4185.0,14.504]
[1758668709409,0.35980452,4185.2,4185.0,14.504]
[1758668709609,3.985,4185.1,4185.0,14.504]
[1758668709806,3.985,4185.1,4185.0,16.89348626]
[1758668711039,3.985,4185.1,4185.0,17.56168626]
[1758668712239,0.001,4185.3,4185.2,2.38937207]
[1758668712538,6.18733498,4185.3,4185.2,2.38937207]
[1758668713757,6.053,4185.3,4185.2,2.62957207]
[1758668713913,6.18733936,4185.3,4185.2,2.62957207]
[1758668714257,0.13533936,4185.3,4185.2,2.62957207]
[1758668714454,6.053,4185.3,4185.2,2.62957207]
[1758668714654,6.18734708,4185.3,4185.2,2.62957207]
[1758668714860,6.053,4185.3,4185.2,2.62957207]
[1758668715152,6.18735651,4185.3,4185.2,2.62957207]
[1758668715780,6.053,4185.3,4185.2,17.12957207]
[1758668716165,6.052,4185.3,4185.2,17.58857207]
[1758668717599,6.052,4185.3,4185.2,16.88937207]
[1758668718775,6.052,4185.3,4185.2,14.5]
[1758668718999,6.89855103,4185.3,4185.2,14.5]
[1758668719206,7.58850613,4185.3,4185.2,14.5]
[1758668719791,14.77850613,4185.3,4185.2,14.5]
[1758668723830,14.77850613,4185.3,4185.2,16.88937207]
[1758668723831,13.62125103,4185.3,4185.2,16.88937207]
[1758668724239,13.37635103,4185.3,4185.2,16.88937207]
[1758668725133,13.37435103,4185.3,4185.2,16.88937207]
[1758668725726,13.37435103,4185.3,4185.2,17.12957207]
[1758668726036,13.37435103,4185.3,4185.2,16.88937207]
[1758668727142,0.1192,4185.2,4185.1,2.38942916]
[1758668727305,0.25355103,4185.2,4185.1,2.38942916]
[1758668727642,0.25355103,4185.2,4185.1,16.88942916]
[1758668729519,0.1192,4185.2,4185.1,17.12962916]
[1758668730263,0.1192,4185.2,4185.1,16.88942916]
[1758668730944,0.1192,4185.2,4185.1,2.38942916]
[1758668730945,0.96578862,4185.2,4185.1,2.38942916]
[1758668731405,0.25358862,4185.2,4185.1,16.88942916]
[1758668731745,7.44358862,4185.2,4185.1,16.88942916]
[1758668732244,13.49758862,4185.2,4185.1,16.89342916]
[1758668733833,13.49758862,4185.2,4185.1,17.59262916]
[1758668734384,13.49764313,4185.2,4185.1,17.59262916]
[1758668734765,13.49764313,4185.2,4185.1,17.13362916]
[1758668734946,13.49764313,4185.2,4185.1,16.89342916]
[1758668737392,13.74254313,4185.2,4185.1,14.504]
[1758668737551,13.74254313,4185.2,4185.1,16.89342916]
[1758668738453,13.74264401,4185.2,4185.1,16.89342916]
[1758668738852,11.67264401,4185.2,4185.1,16.89342916]
[1758668739152,13.74064401,4185.2,4185.1,16.89342916]
[1758668740586,13.74064401,4185.2,4185.1,14.504]
[1758668740883,14.43218825,4185.2,4185.1,14.504]
[1758668742188,8.38018825,4185.2,4185.1,14.504]
[1758668742387,14.43118825,4185.2,4185.1,14.504]
[1758668743747,13.71898825,4185.2,4185.1,17.12212916]
[1758668745086,7.66798825,4185.2,4185.1,17.12212916]
[1758668745286,13.49374401,4185.2,4185.1,17.12212916]
[1758668745464,7.44374401,4185.2,4185.1,17.12212916]
[1758668745780,13.71798389,4185.2,4185.1,17.12212916]
[1758668745962,13.49374401,4185.2,4185.1,16.89342916]
[1758668746390,7.44374401,4185.2,4185.1,16.89342916]
[1758668746550,7.44374401,4185.2,4185.1,14.504]
[1758668746551,13.49374401,4185.2,4185.1,14.504]
[1758668746756,13.95799294,4185.2,4185.1,0.004]
[1758668747294,7.90799294,4185.2,4185.1,0.004]
[1758668747478,13.95799294,4185.2,4185.1,2.39342916]
[1758668747874,13.71799294,4185.2,4185.1,2.39342916]
[1758668749768,13.95799294,4185.2,4185.1,0.004]
[1758668749971,14.40999294,4185.2,4185.1,0.004]
[1758668750969,14.41000923,4185.2,4185.1,0.004]
[1758668751267,13.71800923,4185.2,4185.1,0.004]
[1758668751473,14.41000923,4185.2,4185.1,2.39342916]
[1758668751697,13.71800923,4185.2,4185.1,2.39342916]
[1758668752569,13.71800923,4185.2,4185.1,0.004]
[1758668753988,13.95800923,4185.2,4185.1,0.004]
[1758668754756,13.71800923,4185.2,4185.1,0.004]
[1758668756705,7.66800923,4185.2,4185.1,0.004]
[1758668756999,14.55321015,4185.2,4185.1,0.004]
[1758668757302,17.63458222,4185.2,4185.1,0.004]
[1758668759289,15.24521015,4185.2,4185.1,0.004]
[1758668760806,17.63458222,4185.2,4185.1,0.004]
[1758668761904,20.63458222,4185.2,4185.1,0.004]
[1758668762205,21.94264275,4185.2,4185.1,0.004]
[1758668763805,19.55327068,4185.2,4185.1,0.004]
[1758668764011,18.86127068,4185.2,4185.1,0.004]
[1758668764406,21.25064275,4185.2,4185.1,0.004]
[1758668765115,21.49064275,4185.2,4185.1,0.004]
[1758668765325,21.94264275,4185.2,4185.1,0.004]
[1758668765710,15.44164275,4185.2,4185.1,0.004]
[1758668766012,14.08827068,4185.2,4185.1,0.004]
[1758668766218,18.06927068,4185.2,4185.1,0.004]
[1758668766524,12.02027068,4185.2,4185.1,0.004]
[1758668766709,16.71700923,4185.2,4185.1,0.7007]
[1758668766889,16.71700923,4185.2,4185.1,3.09012916]
[1758668767083,16.71700923,4185.2,4185.1,17.61402345]
[1758668767084,7.44375346,4185.2,4185.1,17.61402345]
[1758668767311,7.19,4185.2,4185.1,17.59012916]
[1758668767511,6.049,4185.2,4185.1,19.71961503]
[1758668767722,0.001,4185.3,4185.2,2.38937207]
[1758668767906,2.259,4185.3,4185.2,3.08607207]
[1758668768390,2.259,4185.3,4185.2,3.10996579]
[1758668768614,2.259,4185.3,4185.2,17.60996579]
[1758668768925,2.259,4185.3,4185.2,19.83768452]
[1758668772042,0.001,4185.3,4185.2,19.83768452]
[1758668772350,6.05,4185.3,4185.2,19.83768452]
[1758668773052,0.001,4185.3,4185.2,19.83768452]
[1758668773347,3.982,4185.3,4185.2,19.83768452]
[1758668781133,0.001,4185.3,4185.2,19.83768452]
[1758668781339,2.546,4185.3,4185.2,19.83768452]
[1758668782045,0.001,4185.3,4185.2,19.83768452]
[1758668782218,3.981,4185.3,4185.2,19.83768452]
[1758668783392,0.001,4185.3,4185.2,19.83768452]
[1758668783536,1e-08,4185.4,4185.3,2.38931498]
[1758668783745,0.001,4185.8,4185.7,2.38908665]
[1758668783940,0.001,4185.8,4185.7,2.41297751]
[1758668784223,0.001,4186.2,4186.1,2.38885836]
[1758668784333,3.981,4186.2,4186.1,2.41274694]
[1758668784677,0.001,4186.2,4186.1,3.77342479]
[1758668784972,1.002,4186.2,4186.1,18.27342479]
[1758668785174,1.002,4186.2,4186.1,18.24953621]
[1758668786439,3.99409253,4186.4,4186.2,2.38880129]
[1758668786672,3.99409253,4186.4,4186.3,3.10473167]
[1758668786835,3.99409253,4186.4,4186.3,3.72094275]
[1758668787039,3.99409253,4186.4,4186.3,18.22094275]
[1758668787271,3.99409253,4186.4,4186.3,18.19705531]
[1758668791175,0.41509253,4186.4,4186.3,18.31625531]
[1758668795603,0.021,4186.9,4186.6,2.38857306]
[1758668795896,0.021,4186.9,4186.6,2.41245879]
[1758668796206,0.021,4186.9,4186.6,3.22375879]
[1758668796368,0.021,4186.9,4186.6,17.72375879]
[1758668796701,0.021,4186.9,4186.6,17.69987306]
[1758668796904,0.021,4186.9,4186.6,19.85435377]
[1758668797095,0.021,4186.9,4186.6,20.55635377]
[1758668798041,1e-08,4186.9,4186.6,22.14678071]
[1758668798215,1e-08,4186.9,4186.8,2.38845896]
[1758668798370,1e-08,4186.9,4186.8,6.36745896]
[1758668798567,1e-08,4186.9,4186.8,22.90093681]
[1758668802912,1e-08,4186.9,4186.8,22.90193681]
[1758668803816,1e-08,4186.9,4186.8,18.22983681]
[1758668804021,1e-08,4186.9,4186.8,22.88823681]
[1758668811527,1e-08,4186.9,4186.8,22.20983681]
[1758668812111,1e-08,4186.9,4186.8,22.45153681]
[1758668813437,1e-08,4186.9,4186.8,22.20983681]
[1758668814848,1e-08,4186.9,4186.8,22.45153681]
[1758668818649,1e-08,4186.9,4186.8,22.88823681]
[1758668819843,1e-08,4186.9,4186.8,22.45153681]
[1758668820335,1e-08,4186.9,4186.8,22.20983681]
[1758668821360,1e-08,4186.9,4186.8,22.20783681]
[1758668822060,1e-08,4186.9,4186.8,22.21183681]
[1758668822261,1e-08,4186.9,4186.8,22.45353681]
[1758668827731,1e-08,4186.9,4186.8,22.21183681]
[1758668830267,1e-08,4186.9,4186.8,21.41983681]
[1758668830467,0.69420001,4186.9,4186.8,16.89245896]
[1758668832284,1e-08,4186.9,4186.8,16.89245896]
[1758668832780,1e-08,4186.9,4186.8,18.04195896]
[1758668833084,1e-08,4186.9,4186.8,18.51045896]
[1758668834943,1e-08,4187.6,4187.5,2.3880597]
[1758668835185,1e-08,4187.6,4187.5,2.88956364]
[1758668835563,1e-08,4187.6,4187.5,17.63756364]
[1758668835800,1e-08,4187.6,4187.5,17.61368305]
[1758668836007,1e-08,4187.9,4187.5,18.32048305]
[1758668836320,1e-08,4187.9,4187.8,2.38788862]
[1758668836522,1e-08,4187.9,4187.8,3.67159294]
[1758668836816,1e-08,4187.9,4187.8,18.17159294]
[1758668837020,1e-08,4187.9,4187.8,18.14771406]
[1758668837322,1e-08,4187.9,4187.8,18.85451406]
[1758668838042,1e-08,4187.9,4187.8,20.1319778]
[1758668838209,1e-08,4188.9,4188.8,2.38731856]
[1758668838408,1e-08,4188.9,4188.8,2.88866307]
[1758668838773,1e-08,4188.9,4188.8,17.38866307]
[1758668839020,1e-08,4188.9,4188.8,17.36478989]
[1758668841018,0.00100001,4188.9,4188.8,17.36478989]
[1758668844933,0.00100001,4188.9,4188.8,17.48398989]
[1758668845234,0.68300001,4188.9,4188.8,17.48398989]
[1758668846345,0.68300001,4188.9,4188.8,17.00651856]
[1758668859892,0.24800001,4188.9,4188.8,17.00651856]
[1758668860100,0.00100001,4188.9,4188.8,17.00651856]
[1758668864001,0.69440001,4188.9,4188.8,17.00651856]
[1758668867128,0.00100001,4188.9,4188.8,17.00651856]
[1758668868423,3.97700001,4188.9,4188.8,17.66181856]
[1758668871631,3.97700001,4188.9,4188.8,17.00651856]
[1758668872435,3.97700001,4188.9,4188.8,17.66181856]
[1758668872593,0.00100001,4188.9,4188.8,17.23211856]
[1758668872794,0.00100001,4188.9,4188.8,20.02136989]
[1758668876460,0.00100001,4188.9,4188.8,17.01051856]
[1758668876666,0.23280001,4188.9,4188.8,17.01051856]
[1758668876844,0.69440001,4188.9,4188.8,17.01051856]
[1758668882150,0.00100001,4188.9,4188.8,17.01051856]
[1758668882389,3.97700001,4188.9,4188.8,17.66581856]
[1758668882895,0.00100001,4188.9,4188.8,17.66581856]
[1758668883068,0.00100001,4188.9,4188.8,19.67113989]
[1758668883270,0.00100001,4188.9,4188.8,17.66581856]
[1758668884390,0.00100001,4188.9,4188.8,17.54661856]
[1758668889871,0.00100001,4188.9,4188.8,16.89131856]
[1758668890286,0.00100001,4188.9,4188.8,17.54661856]
[1758668890498,0.00100001,4188.9,4188.8,18.33861856]
[1758668890699,1e-08,4189.4,4189.3,2.38703363]
[1758668890900,1e-08,4189.4,4189.3,2.41090396]
[1758668891107,1e-08,4189.4,4189.3,3.06620396]
[1758668891307,1e-08,4189.4,4189.3,17.56620396]
[1758668891615,1e-08,4189.4,4189.3,17.54233363]
[1758668891814,1e-08,4189.4,4189.3,18.24576375]
[1758668894276,1e-08,4189.4,4189.3,18.36496375]
[1758668897213,1e-08,4189.4,4189.3,17.70966375]
[1758668897419,1e-08,4189.4,4189.3,17.94476375]
[1758668897919,1e-08,4189.4,4189.3,18.39116375]
[1758668900050,1e-08,4189.4,4189.3,17.70966375]
[1758668900250,1e-08,4189.4,4189.3,17.94476375]
[1758668900555,1e-08,4189.4,4189.3,18.39116375]
[1758668902609,1e-08,4189.4,4189.3,18.15606375]
[1758668902937,1e-08,4189.4,4189.3,17.70966375]
[1758668903533,0.23110001,4189.4,4189.3,21.68466375]
[1758668904033,0.66320001,4189.4,4189.3,21.68466375]
[1758668905004,1e-08,4189.4,4189.3,21.68466375]
[1758668907067,0.66320001,4189.4,4189.3,17.70966375]
[1758668907492,0.23110001,4189.4,4189.3,17.70966375]
[1758668907669,1e-08,4189.4,4189.3,17.70966375]
[1758668910301,1e-08,4189.4,4189.3,17.94476375]
[1758668910524,1e-08,4189.4,4189.3,17.70966375]
[1758668911704,1e-08,4189.4,4189.3,17.71366375]
[1758668912606,0.66320001,4189.4,4189.3,17.71366375]
[1758668912800,0.66320001,4189.4,4189.3,17.01023363]
[1758668914583,1e-08,4189.4,4189.3,17.01023363]
[1758668916314,1e-08,4189.4,4189.3,17.69173363]
[1758668918011,1e-08,4189.4,4189.3,17.24533363]